fUSD/lending_fUSD_20241112
["ID","MTS","AMOUNT","RATE_DAILY","PERIOD"]
[342043211,1731382252945,-500.0,0.00014899,2]
[342043212,1731382252955,-281.57192536,0.00014899,2]
[342043213,1731382252966,-500.0,0.00014899,2]
[342043214,1731382252975,-500.0,0.00014899,2]
[342043215,1731382252985,-500.0,0.00014899,2]
[342043216,1731382252995,-500.0,0.00014899,2]
[342043217,1731382253005,-500.0,0.00014899,2]
[342043218,1731382253015,-500.0,0.00014899,2]
[342043219,1731382253024,-500.0,0.00014899,2]
[342043220,1731382253034,-151.0,0.00014899,2]
[342043221,1731382253044,-151.0,0.00014899,2]
[342043222,1731382253054,-456.17378085,0.00014899,2]
[342043223,1731382253065,-151.0,0.00014899,2]
[342043224,1731382253074,-165.960741,0.00014899,2]
[342043225,1731382253084,-500.0,0.00014899,2]
[342043226,1731382253094,-500.0,0.00014899,2]
[342043227,1731382253104,-337.19794542,0.00014899,2]
[342043228,1731382253114,-176.08925383,0.00014899,2]
[342043229,1731382253124,-833.3,0.00014899,2]
[342043230,1731382253133,-833.3,0.00014899,2]
[342043231,1731382253143,-833.3,0.00014899,2]
[342043232,1731382253152,-833.3,0.00014899,2]
[342043233,1731382253162,-833.3,0.00014899,2]
[342043234,1731382253171,-833.3,0.00014899,2]
[342043235,1731382253180,-833.3,0.00014899,2]
[342043236,1731382253190,-833.3,0.00014899,2]
[342043237,1731382253199,-833.3,0.00014899,2]
[342043238,1731382253208,-833.3,0.00014899,2]
[342043239,1731382253217,-833.3,0.00014899,2]
[342043240,1731382253228,-833.49590615,0.00014899,2]
[342043241,1731382253237,-2089356.96164757,0.000149,3]
[342043242,1731382253533,-12847.52193573,0.000149,3]
[342043243,1731382254010,-150.0,0.00014413,2]
[342043244,1731382254020,-628.0,0.00014743,2]
[342043245,1731382254029,-500.0,0.00014888,2]
[342043246,1731382254040,-343.25106523,0.00014888,2]
[342043247,1731382254053,-500.0,0.00014889,2]
[342043248,1731382254062,-182.394313,0.00014898,2]
[342043249,1731382254072,-182.394313,0.00014898,2]
[342043250,1731382254081,-182.394313,0.00014898,2]
[342043251,1731382254090,-182.394313,0.00014898,2]
[342043252,1731382254099,-4606.68803565,0.00014899,2]
[342043253,1731382254111,-3125.94448,0.00014899,2]
[342043254,1731382254121,-1183.09863459,0.00014899,2]
[342043255,1731382254195,-1716.59148619,0.00014899,2]
[342043256,1731382254206,-2519.60804748,0.00014899,2]
[342043257,1731382254217,-3575.75337845,0.00014899,2]
[342043258,1731382254227,-916.10504808,0.00014899,2]
[342043259,1731382254238,-3659.74754794,0.00014899,2]
[342043260,1731382254249,-5920.25158562,0.00014899,2]
[342043261,1731382254263,-13176.17492553,0.00014899,2]
[342043262,1731382254274,-10729.9312,0.00014899,2]
[342043263,1731382254284,-2178.51267961,0.00014899,2]
[342043264,1731382254309,-509.68748336,0.00014899,2]
[342043265,1731382254360,-1999.73553501,0.00014899,2]
[342043266,1731382254371,-4222.96911794,0.00014899,2]
[342043267,1731382254526,-150.0,0.00014718,2]
[342043268,1731382254535,-2062.88298954,0.00014899,2]
[342043269,1731382254547,-175499.9999999,0.00014899,2]
[342043270,1731382254558,-3760.31629213,0.00014899,2]
[342043271,1731382254592,-150.0,0.0001478,2]
[342043272,1731382254601,-150.0,0.00014824,2]
[342043273,1731382254610,-128.122495,0.00014899,2]
[342043274,1731382254620,-1144.79999999,0.00014899,2]
[342043275,1731382254690,-10594.61031032,0.00014899,2]
[342043276,1731382254730,-150.0,0.00014804,2]
[342043277,1731382254739,-150.0,0.00014848,2]
[342043278,1731382254748,-431.66040016,0.00014899,2]
[342043279,1731382255000,-150.0,0.00014763,2]
[342043280,1731382255009,-150.0,0.00014764,2]
[342043281,1731382255018,-150.0,0.00014764,2]
[342043282,1731382255028,-150.0,0.00014788,2]
[342043283,1731382255037,-150.0,0.00014854,2]
[342043284,1731382255046,-150.0,0.00014896,2]
[342043285,1731382255055,-4301.52695816,0.00014899,2]
[342043286,1731382255066,-3988.95709816,0.00014899,2]
[342043287,1731382255077,-2162.50458529,0.00014899,2]
[342043288,1731382255186,-500.0,0.00014888,2]
[342043289,1731382255196,-500.0,0.00014889,2]
[342043290,1731382255207,-500.0,0.00014897,2]
[342043291,1731382255216,-500.0,0.00014898,2]
[342043292,1731382255225,-500.0,0.00014898,2]
[342043293,1731382255234,-500.0,0.00014898,2]
[342043294,1731382255243,-500.0,0.00014898,2]
[342043295,1731382255252,-518.13536922,0.00014898,2]
[342043296,1731382255261,-149641.12698931,0.00014899,2]
[342043297,1731382255277,-311.40168311,0.00014899,2]
[342043298,1731382255582,-507.84753802,0.00014888,2]
[342043299,1731382255592,-104.65246198,0.00014888,2]
[342043300,1731382255621,-842.94753802,0.00014888,2]
[342043301,1731382255630,-500.0,0.00014888,2]
[342043302,1731382255640,-947.6,0.00014889,2]
[342043303,1731382255650,-310.71870254,0.00014889,2]
[342043304,1731382255661,-1918.18129746,0.00014889,2]
[342043305,1731382255670,-401.2173303,0.00014889,2]
[342043306,1731382255691,-533.09672168,0.00014889,2]
[342043307,1731382255779,-2072.24958732,0.00014889,2]
[342043308,1731382402329,500.0,0.00024999,120]
[342043309,1731382404759,200.0,0.00024999,120]
[342043314,1731382773991,-156.77,0.00013083,2]
[342043315,1731382774014,-150.12,0.00013695,2]
[342043316,1731382774035,-250.0,0.00013699,2]
[342043317,1731382774057,-188.07,0.00013705,2]
[342043318,1731382774086,-177.26,0.00013747,2]
[342043319,1731382774107,-319.95,0.00013753,2]
[342043320,1731382774127,-250.0,0.00013756,2]
[342043321,1731382774149,-156.77,0.00013772,2]
[342043322,1731382774170,-462.51,0.00013779,2]
[342043323,1731382774191,-5539.75,0.00013788,2]
[342043324,1731382774212,-177.26,0.00013793,2]
[342043325,1731382774232,-300.0,0.00013838,2]
[342043326,1731382774252,-3183.04,0.00013839,2]
[342043327,1731382774275,-792.91,0.00013839,2]
[342043328,1731382774295,-177.26,0.00013839,2]
[342043329,1731382774316,-177.26,0.00013885,2]
[342043330,1731382774337,-400.0,0.000139,5]
[342043331,1731382774357,-150.0,0.00013918,2]
[342043332,1731382783284,200.0,0.00013794,2]
[342043333,1731382825212,1121.07,0.0001379,2]
[342043336,1731382870021,843.69,0.00011838,2]
[342043338,1731383159139,-869.93080612,0.00013656,2]
[342043341,1731383432465,-300.0,0.00013599,2]
[342043342,1731383432474,-60226.89619742,0.000136,2]
[342043343,1731383432483,-366.5521489,0.000136,2]
[342043344,1731383432495,-20395.9,0.000136,2]
[342043345,1731383432506,-450.0,0.000136,2]
[342043347,1731383432517,-2590.61077237,0.000136,2]
[342043348,1731383432529,-6691.20643405,0.000136,2]
[342043349,1731383432540,-8948.48349334,0.000136,2]
[342043350,1731383432552,-311.44815681,0.000136,2]
[342043351,1731383432563,-10821.72605162,0.000136,2]
[342043353,1731383432744,-5410.85127558,0.000136,2]
[342043355,1731383432753,-369.63,0.00013664,2]
[342043356,1731383432762,-369.63,0.00013671,2]
[342043358,1731383432771,-255.96,0.00013677,2]
[342043359,1731383432783,-369.63,0.00013679,2]
[342043360,1731383432793,-369.63,0.00013686,2]
[342043361,1731383432802,-369.63,0.00013693,2]
[342043362,1731383432812,-369.63,0.000137,2]
[342043363,1731383432821,-250.0,0.00013702,2]
[342043364,1731383432829,-369.63,0.00013707,2]
[342043365,1731383432838,-369.63,0.00013715,2]
[342043366,1731383432847,-369.63,0.00013722,2]
[342043367,1731383432856,-150.0,0.00013726,2]
[342043368,1731383432865,-369.63,0.00013729,2]
[342043369,1731383432875,-2751.0,0.00013729,2]
[342043370,1731383432884,-369.63,0.00013736,2]
[342043371,1731383432894,-369.63,0.00013743,2]
[342043372,1731383432903,-1000.0,0.00013745,2]
[342043373,1731383432912,-369.63,0.0001375,2]
[342043374,1731383432921,-150.0,0.00013755,2]
[342043375,1731383432930,-23900.0,0.00013756,2]
[342043376,1731383432939,-167.34,0.00013756,2]
[342043377,1731383432948,-150.0,0.00013756,2]
[342043378,1731383432957,-231.25,0.00013756,2]
[342043379,1731383432966,-369.63,0.00013758,2]
[342043380,1731383432976,-300.0,0.00013759,2]
[342043381,1731383432985,-200.0,0.0001376,2]
[342043382,1731383432995,-150.0,0.00013762,2]
[342043383,1731383433004,-6007.99,0.00013764,2]
[342043384,1731383433014,-369.63,0.00013765,2]
[342043385,1731383433024,-369.63,0.00013772,2]
[342043386,1731383433036,-369.63,0.00013779,2]
[342043387,1731383433046,-250.0,0.00013786,2]
[342043388,1731383433056,-369.63,0.00013786,2]
[342043389,1731383433067,-2536.73,0.0001379,2]
[342043390,1731383433076,-369.63,0.00013793,2]
[342043391,1731383433086,-369.63,0.00013801,2]
[342043392,1731383433095,-400.0,0.000139,5]
[342043393,1731383433105,-800.0,0.00014,5]
[342043394,1731383433115,-1031.49841474,0.00014076,2]
[342043395,1731383433129,-968.50158526,0.00014076,2]
[342043396,1731383433141,-1600.0,0.00014076,2]
[342043397,1731383433151,-1200.0,0.000141,5]
[342043398,1731383433161,-843.69,0.00014102,2]
[342043399,1731383433171,-1102.30841724,0.000142,5]
[342043400,1731383433184,-497.69158276,0.000142,5]
[342043401,1731383433194,-858.19488814,0.00014247,2]
[342043402,1731383433207,-1132.09272918,0.00014247,2]
[342043403,1731383433220,-220.38238268,0.00014247,2]
[342043404,1731383433230,-2000.0,0.000143,5]
[342043405,1731383433240,-255.96,0.00014361,2]
[342043406,1731383433250,-160.436206,0.000144,2]
[342043407,1731383433262,-258.2430894,0.000144,2]
[342043408,1731383433272,-1295.99,0.000144,2]
[342043409,1731383433284,-400.0,0.000144,5]
[342043410,1731383433295,-156.77,0.0001446,2]
[342043411,1731383433304,-574.093,0.000145,2]
[342043412,1731383433314,-400.0,0.000145,5]
[342043413,1731383433324,-369.51393769,0.00014558,2]
[342043414,1731383433334,-400.0,0.000146,5]
[342043415,1731383433344,-3578.94644018,0.00014689,2]
[342043416,1731383433355,-257.04835982,0.00014689,2]
[342043417,1731383433365,-400.0,0.000147,5]
[342043418,1731383433375,-150.0,0.00014729,2]
[342043419,1731383433384,-150.0,0.0001473,2]
[342043420,1731383433395,-150.0,0.00014733,2]
[342043421,1731383433405,-150.0,0.00014734,2]
[342043422,1731383433415,-2066.0,0.00014738,2]
[342043423,1731383433426,-150.0,0.00014739,2]
[342043424,1731383433435,-150.0,0.0001474,2]
[342043425,1731383433444,-150.0,0.00014741,2]
[342043426,1731383433454,-150.0,0.00014741,2]
[342043427,1731383433463,-150.0,0.00014741,2]
[342043428,1731383433472,-150.0,0.00014743,2]
[342043429,1731383433482,-1500.0,0.00014746,2]
[342043430,1731383433491,-1500.0,0.00014747,2]
[342043431,1731383433500,-150.0,0.00014752,2]
[342043432,1731383433509,-150.0,0.00014755,2]
[342043433,1731383433519,-150.0,0.00014757,2]
[342043434,1731383433528,-150.0,0.00014758,2]
[342043435,1731383433540,-150.0,0.00014759,2]
[342043436,1731383433549,-150.0,0.00014759,2]
[342043437,1731383433558,-150.0,0.00014761,2]
[342043438,1731383433568,-150.0,0.00014765,2]
[342043439,1731383433577,-150.0,0.00014766,2]
[342043440,1731383433586,-1500.0,0.00014774,2]
[342043441,1731383433595,-150.0,0.00014776,2]
[342043442,1731383433605,-1614.2915033,0.00014785,2]
[342043443,1731383433615,-285.82211421,0.00014786,2]
[342043444,1731383433624,-1566.01959493,0.00014787,2]
[342043445,1731383433633,-150.0,0.00014787,2]
[342043446,1731383433642,-751.8985,0.00014787,2]
[342043447,1731383433651,-9693.2568,0.00014788,2]
[342043448,1731383433661,-745.0084,0.00014788,2]
[342043449,1731383433671,-1289.48020319,0.00014788,2]
[342043450,1731383438337,-150.0,0.00014774,2]
[342043452,1731383438348,-300.19619681,0.00014788,2]
[342043455,1731383438359,-363.9958,0.00014789,2]
[342043456,1731383438368,-9209.20491327,0.00014789,2]
[342043458,1731383438642,-343.33617133,0.00014789,2]
[342043459,1731383438653,-2256.06596179,0.00014789,2]
[342043460,1731383438664,-8739.28685361,0.00014789,2]
[342043461,1731383438673,-4009.71364862,0.00014789,2]
[342043462,1731383438684,-2937.41116757,0.00014789,2]
[342043469,1731383440483,-1825.4,0.00014789,2]
[342043474,1731383440866,-24383.48147194,0.00014789,2]
[342043475,1731383440925,-3660.55401187,0.00014789,2]
[342043476,1731383440932,-150.0,0.00014795,2]
[342043477,1731383440940,-150.0,0.00014796,2]
[342043478,1731383440949,-634.82342469,0.00014798,2]
[342043479,1731383440960,-490.19507052,0.00014798,2]
[342043480,1731383440971,-489.27300803,0.00014798,2]
[342043481,1731383440981,-174.27199308,0.00014798,2]
[342043482,1731383440991,-322.79499885,0.00014798,2]
[342043490,1731383443478,-29.30194524,0.00014798,2]
[342043491,1731383443488,-200.0,0.00014798,2]
[342043492,1731383443497,-215.3281399,0.000148,2]
[342043493,1731383443506,-215.3281399,0.000148,2]
[342043494,1731383443516,-215.3281399,0.000148,2]
[342043495,1731383443525,-215.3281399,0.000148,2]
[342043496,1731383443534,-215.3281399,0.000148,2]
[342043497,1731383443545,-215.3281399,0.000148,2]
[342043498,1731383443554,-215.3281399,0.000148,2]
[342043499,1731383443564,-215.3281399,0.000148,2]
[342043500,1731383443574,-215.3281399,0.000148,2]
[342043501,1731383443583,-215.3281399,0.000148,2]
[342043502,1731383443593,-215.3281399,0.000148,2]
[342043503,1731383443602,-215.3281399,0.000148,2]
[342043504,1731383443611,-215.3281399,0.000148,2]
[342043505,1731383443620,-215.3281399,0.000148,2]
[342043506,1731383443629,-215.3281399,0.000148,2]
[342043507,1731383443639,-215.3281399,0.000148,2]
[342043508,1731383443648,-215.3281399,0.000148,2]
[342043509,1731383443658,-215.3281399,0.000148,2]
[342043510,1731383443667,-215.3281399,0.000148,2]
[342043511,1731383443676,-215.32,0.000148,2]
[342043512,1731383443686,-425.45344389,0.000148,2]
[342043513,1731383443695,-425.45344389,0.000148,2]
[342043514,1731383443705,-425.45344389,0.000148,2]
[342043515,1731383443716,-425.45344389,0.000148,2]
[342043516,1731383443726,-425.45344389,0.000148,2]
[342043517,1731383443736,-425.45344389,0.000148,2]
[342043518,1731383443745,-425.45344389,0.000148,2]
[342043519,1731383443755,-425.45344389,0.000148,2]
[342043520,1731383443764,-425.45344389,0.000148,2]
[342043521,1731383443774,-425.45344389,0.000148,2]
[342043522,1731383443784,-425.45344389,0.000148,2]
[342043523,1731383443794,-425.45344389,0.000148,2]
[342043524,1731383443804,-425.45344389,0.000148,2]
[342043525,1731383443814,-425.45344389,0.000148,2]
[342043526,1731383443823,-425.45344389,0.000148,2]
[342043527,1731383443832,-425.45344389,0.000148,2]
[342043528,1731383443842,-425.45344389,0.000148,2]
[342043529,1731383443851,-425.45344389,0.000148,2]
[342043530,1731383443860,-425.45344389,0.000148,2]
[342043531,1731383443869,-425.45,0.000148,2]
[342043532,1731383443878,-532.0,0.000148,5]
[342043533,1731383443887,-150.0,0.00014804,2]
[342043534,1731383443897,-150.0,0.00014804,2]
[342043535,1731383443905,-150.0,0.00014805,2]
[342043536,1731383443914,-150.0,0.00014806,2]
[342043537,1731383443924,-150.0,0.00014807,2]
[342043538,1731383443932,-150.0,0.0001481,2]
[342043539,1731383443942,-1614.29150324,0.00014811,2]
[342043540,1731383443952,-150.0,0.00014811,2]
[342043541,1731383443961,-1500.0,0.00014811,2]
[342043542,1731383443970,-150.0,0.00014811,2]
[342043543,1731383443979,-150.0,0.00014812,2]
[342043544,1731383443988,-150.0,0.00014814,2]
[342043545,1731383443997,-150.0,0.00014816,2]
[342043546,1731383444007,-150.0,0.00014819,2]
[342043547,1731383444016,-150.0,0.00014821,2]
[342043548,1731383444026,-1614.29150324,0.00014823,2]
[342043549,1731383444036,-150.0,0.00014826,2]
[342043550,1731383444051,-150.0,0.00014828,2]
[342043551,1731383444060,-1500.0,0.00014828,2]
[342043552,1731383444069,-150.0,0.00014835,2]
[342043553,1731383444078,-1614.29150324,0.00014836,2]
[342043554,1731383444087,-150.0,0.00014838,2]
[342043556,1731383444097,-150.0,0.00014838,2]
[342043558,1731383444106,-150.0,0.00014841,2]
[342043560,1731383444116,-150.0,0.00014843,2]
[342043562,1731383444126,-150.0,0.00014844,2]
[342043564,1731383444136,-150.0,0.00014845,2]
[342043566,1731383444145,-150.0,0.00014845,2]
[342043568,1731383444154,-150.0,0.00014846,2]
[342043570,1731383444164,-2053.8,0.00014848,2]
[342043572,1731383444174,-151.52283213,0.00014848,2]
[342043573,1731383444184,-818.66,0.00014848,2]
[342043574,1731383444193,-500.0,0.00014848,2]
[342043575,1731383444202,-500.0,0.00014848,2]
[342043576,1731383444212,-3366.0,0.00014848,2]
[342043577,1731383444221,-864.99,0.00014848,2]
[342043578,1731383444230,-1614.29150324,0.00014849,2]
[342043579,1731383444239,-352.09694407,0.00014849,2]
[342043580,1731383444248,-2879.35322107,0.0001485,2]
[342043581,1731383444260,-150.0,0.00014852,2]
[342043582,1731383444273,-1500.0,0.00014853,2]
[342043583,1731383444283,-150.0,0.00014853,2]
[342043584,1731383444294,-150.0,0.00014854,2]
[342043585,1731383444304,-150.0,0.00014854,2]
[342043586,1731383444315,-150.0,0.00014855,2]
[342043587,1731383444324,-150.0,0.00014856,2]
[342043588,1731383444334,-150.0,0.00014857,2]
[342043589,1731383444345,-150.0,0.00014857,2]
[342043590,1731383444355,-150.0,0.00014859,2]
[342043591,1731383444365,-150.0,0.0001486,2]
[342043592,1731383444374,-1614.29150324,0.00014862,2]
[342043593,1731383444384,-150.0,0.00014862,2]
[342043594,1731383444394,-150.0,0.00014866,2]
[342043595,1731383444404,-150.0,0.00014867,2]
[342043596,1731383444415,-150.0,0.00014867,2]
[342043597,1731383444425,-150.0,0.00014871,2]
[342043598,1731383444435,-501.58773034,0.00014873,2]
[342043599,1731383444445,-500.0,0.00014873,2]
[342043600,1731383444454,-502.15616735,0.00014873,2]
[342043601,1731383444464,-341.39637954,0.00014873,2]
[342043602,1731383444473,-500.0,0.00014873,2]
[342043603,1731383444483,-150.0,0.00014873,2]
[342043604,1731383444493,-150.0,0.00014873,2]
[342043605,1731383444503,-150.0,0.00014874,2]
[342043606,1731383444512,-1614.29150324,0.00014874,2]
[342043607,1731383444522,-150.0,0.00014875,2]
[342043608,1731383444532,-150.0,0.00014877,2]
[342043609,1731383444543,-150.0,0.00014877,2]
[342043610,1731383444553,-150.0,0.00014879,2]
[342043611,1731383444563,-15771.21354375,0.00014884,2]
[342043612,1731383444576,-1238.45874195,0.00014884,2]
[342043613,1731383444752,-487.49141269,0.00014873,2]
[342043614,1731383444762,-539.3578321,0.00014884,2]
[342043615,1731383444774,-8250.63153257,0.00014884,2]
[342043616,1731383444817,-96.6594034,0.00014884,2]
[342043617,1731383444830,-774.89963738,0.00014884,2]
[342043618,1731383444842,-1950.8,0.00014884,2]
[342043630,1731383446604,-459.8352772,0.00014586,2]
[342043631,1731383446617,-674.17123915,0.00014586,2]
[342043632,1731383446627,-2126.89935324,0.00014884,2]
[342043633,1731383446640,-13154.2488,0.00014884,2]
[342043635,1731383446836,-1971.07646217,0.00014884,2]
[342044294,1731383700900,150.0,0.00011887,2]
[342044295,1731383700921,150.0,0.00011887,2]
[342044296,1731383700945,150.0,0.00011887,2]
[342044297,1731383700967,150.0,0.00011887,2]
[342044298,1731383700989,150.0,0.00011887,2]
[342044299,1731383701012,65.72,0.00011887,2]
[342044326,1731384366942,84.28,0.00011493,2]
[342044327,1731384366963,265.53,0.00011493,2]
[342044328,1731384366983,150.0,0.00011493,2]
[342044329,1731384367010,275.12,0.00011493,2]
[342044342,1731384558331,-156.77,0.00013088,2]
[342044343,1731384558354,-1000.0,0.00013385,2]
[342044344,1731384558375,-167.34,0.00013395,2]
[342044345,1731384558396,-300.0,0.00013397,2]
[342044346,1731384558421,-23775.75407551,0.00013398,2]
[342044366,1731384632275,-124.24592449,0.00013398,2]
[342044367,1731384632284,-250.0,0.00013419,2]
[342044368,1731384632294,-150.45,0.00013422,2]
[342044369,1731384632303,-2898.4804,0.00013518,2]
[342044370,1731384632312,-1456.36,0.00013597,2]
[342044371,1731384632322,-1456.36,0.00013604,2]
[342044372,1731384632331,-1456.36,0.00013611,2]
[342044373,1731384632340,-1456.36,0.00013618,2]
[342044374,1731384632349,-1119.52215485,0.00013625,2]
[342044375,1731384632360,-336.83784515,0.00013625,2]
[342044376,1731384632369,-851.79,0.00013625,2]
[342044377,1731384632378,-853.58301309,0.00013632,2]
[342044378,1731384632389,-602.77698691,0.00013632,2]
[342044379,1731384632398,-1456.36,0.0001364,2]
[342044380,1731384632407,-1456.36,0.00013647,2]
[342044381,1731384632416,-1456.36,0.00013654,2]
[342044382,1731384632425,-1456.36,0.00013661,2]
[342044383,1731384632434,-289.41858009,0.00013667,2]
[342044384,1731384632475,-65.07141991,0.00013667,2]
[342044385,1731384632485,-1037.15911501,0.00013668,2]
[342044386,1731384632496,-419.20088499,0.00013668,2]
[342044387,1731384632506,-31.24847542,0.00013675,2]
[342044388,1731384632518,-1209.25238931,0.00013675,2]
[342044389,1731384632529,-215.85913527,0.00013675,2]
[342044390,1731384632538,-1456.36,0.00013683,2]
[342044391,1731384632547,-327.78086473,0.0001369,2]
[342044392,1731384632558,-1128.57913527,0.0001369,2]
[342044393,1731384632567,-231.25,0.00013691,2]
[342044394,1731384632577,-1456.36,0.00013697,2]
[342044395,1731384632586,-500.0,0.00013699,2]
[342044396,1731384632595,-250.0,0.00013699,2]
[342044397,1731384632605,-150.0,0.00013699,2]
[342044398,1731384632614,-1125.666046,0.000137,2]
[342044399,1731384632623,-400.0,0.000137,2]
[342044400,1731384632632,-1456.36,0.00013704,2]
[342044401,1731384632641,-1456.36,0.00013711,2]
[342044402,1731384632650,-93.54607318,0.00013718,2]
[342044419,1731384632901,-1362.81392682,0.00013718,2]
[342044420,1731384632910,-1785.4364797,0.00013723,2]
[342044421,1731384632932,-692.9863151,0.00013723,2]
[342044422,1731384632950,-1386.10575894,0.00013723,2]
[342044429,1731384638317,-250.0,0.00013429,2]
[342044430,1731384638326,-150.0,0.00013429,2]
[342044431,1731384638336,-2531.43144626,0.00013723,2]
[342044432,1731384638345,-1456.36,0.00013725,2]
[342044433,1731384638354,-1456.36,0.00013733,2]
[342044434,1731384638363,-150.0,0.00013736,2]
[342044435,1731384638372,-774.93,0.00013757,2]
[342044436,1731384638381,-166.03,0.00013805,2]
[342044437,1731384638391,-200.0,0.00013864,2]
[342044438,1731384638400,-200.0,0.00013878,2]
[342044439,1731384638409,-200.0,0.00013882,2]
[342044440,1731384638418,-200.0,0.00013887,2]
[342044441,1731384638428,-517.9,0.00013893,2]
[342044442,1731384638438,-157.67,0.0001405,7]
[342044443,1731384638447,-183.32,0.0001405,7]
[342044444,1731384638456,-574.351,0.00014151,2]
[342044445,1731384638466,-354.49,0.0001435,2]
[342044446,1731384638476,-150.0,0.00014384,2]
[342044447,1731384638485,-1002.04307342,0.00014586,2]
[342044448,1731384638495,-150.0,0.0001466,2]
[342044449,1731384638503,-150.0,0.00014665,2]
[342044450,1731384638513,-150.0,0.00014673,2]
[342044451,1731384638522,-150.0,0.00014677,2]
[342044452,1731384638531,-150.0,0.00014679,2]
[342044453,1731384638540,-964.2251,0.00014685,2]
[342044454,1731384638549,-150.0,0.00014701,2]
[342044455,1731384638558,-150.0,0.00014706,2]
[342044456,1731384638567,-150.0,0.0001471,2]
[342044457,1731384638577,-150.0,0.0001472,2]
[342044458,1731384638586,-150.0,0.00014721,2]
[342044459,1731384638595,-1500.0,0.00014722,2]
[342044460,1731384638604,-150.0,0.00014731,2]
[342044461,1731384638613,-150.0,0.00014736,2]
[342044462,1731384638623,-150.0,0.00014737,2]
[342044463,1731384638632,-150.0,0.00014739,2]
[342044464,1731384638641,-150.0,0.0001474,2]
[342044465,1731384638651,-3000.0,0.0001474,2]
[342044466,1731384638664,-150.0,0.00014742,2]
[342044467,1731384638674,-150.0,0.00014745,2]
[342044468,1731384638683,-150.0,0.00014757,2]
[342044469,1731384638692,-150.0,0.00014758,2]
[342044470,1731384638701,-150.0,0.00014758,2]
[342044471,1731384638713,-150.0,0.00014759,2]
[342044472,1731384638723,-150.0,0.00014759,2]
[342044473,1731384638733,-150.0,0.00014763,2]
[342044474,1731384638744,-150.0,0.00014766,2]
[342044475,1731384638753,-150.0,0.00014767,2]
[342044476,1731384638762,-150.0,0.00014768,2]
[342044477,1731384638772,-197.891,0.00014768,2]
[342044478,1731384638781,-666.027,0.00014768,2]
[342044479,1731384638791,-150.0,0.00014774,2]
[342044480,1731384638800,-213.41688113,0.00014776,2]
[342044482,1731384638809,-150.0,0.00014777,2]
[342044484,1731384638819,-150.0,0.00014782,2]
[342044486,1731384638828,-150.0,0.00014782,2]
[342044488,1731384638837,-25144.3426,0.00014785,2]
[342044490,1731384638847,-7945.4325,0.00014785,2]
[342044492,1731384638857,-13486.3569832,0.00014785,2]
[342044497,1731384638892,-7605.31366058,0.00014785,2]
[342044508,1731384638990,-4733.23039279,0.00014785,2]
[342044511,1731384639002,-3538.50414874,0.00014785,2]
[342044515,1731384639036,-5194.03248457,0.00014785,2]
[342044518,1731384639047,-3705.51625185,0.00014785,2]
[342044520,1731384639059,-815.12237827,0.00014785,2]
[342044522,1731384639068,-174.27199308,0.00014787,2]
[342044524,1731384639077,-1119.71895249,0.00014788,2]
[342044526,1731384639086,-150.0,0.00014798,2]
[342044528,1731384639095,-150.0,0.00014799,2]
[342044530,1731384639104,-150.0,0.000148,2]
[342044532,1731384639113,-150.88827626,0.000148,2]
[342044534,1731384639123,-151.99652557,0.000148,2]
[342044536,1731384639132,-151.99652557,0.000148,2]
[342044538,1731384639141,-6.59378819,0.000148,2]
[342044660,1731384640251,-145.40273738,0.000148,2]